fUST/lending_fUST_20241221
["ID","MTS","AMOUNT","RATE_DAILY","PERIOD"]
[346124303,1734723043928,-500.0,0.00022465,6]
[346124304,1734723043937,-500.0,0.00022465,6]
[346124305,1734723043947,-12302.29,0.00022465,6]
[346124306,1734723043956,-406.01372615,0.00022465,6]
[346124307,1734723043966,-1656.86,0.00022465,6]
[346124308,1734723043975,-500.0,0.00022465,6]
[346124309,1734723043984,-500.0,0.00022465,6]
[346124310,1734723043993,-831.02,0.00022465,6]
[346124311,1734723044002,-500.0,0.00022465,6]
[346124312,1734723044012,-500.0,0.00022465,6]
[346124313,1734723044021,-500.0,0.00022465,6]
[346124314,1734723044030,-1919.88,0.00022465,6]
[346124315,1734723044039,-557.9,0.00022465,6]
[346124316,1734723044052,-500.0,0.00022465,6]
[346124317,1734723044061,-1775.95,0.00022465,6]
[346124318,1734723044071,-500.0,0.00022465,6]
[346124319,1734723044080,-500.0,0.00022465,6]
[346124320,1734723044090,-500.0,0.00022465,6]
[346124321,1734723044099,-500.0,0.00022465,6]
[346124322,1734723044108,-732.03,0.00022465,6]
[346124323,1734723044118,-629.98,0.00022465,6]
[346124324,1734723044127,-800.13,0.00022465,6]
[346124325,1734723044136,-3624.62,0.00022465,6]
[346124326,1734723044146,-500.0,0.00022465,6]
[346124327,1734723044156,-500.0,0.00022465,6]
[346124328,1734723044165,-500.0,0.00022465,6]
[346124329,1734723044175,-500.0,0.00022465,6]
[346124330,1734723044185,-841.8,0.00022465,6]
[346124331,1734723044194,-500.0,0.00022465,6]
[346124332,1734723044204,-46817.33,0.00022465,6]
[346124333,1734723044214,-500.0,0.00022465,6]
[346124334,1734723044224,-500.0,0.00022465,6]
[346124335,1734723044234,-500.0,0.00022465,6]
[346124336,1734723044244,-534.83,0.00022465,6]
[346124337,1734723044254,-926.15,0.00022465,6]
[346124338,1734723044264,-4074.17,0.00022465,6]
[346124339,1734723044273,-500.0,0.00022465,6]
[346124340,1734723044283,-717.4,0.00022465,6]
[346124341,1734723044293,-2314.83,0.00022465,6]
[346124342,1734723044305,-6874.85,0.00022465,6]
[346124343,1734723044315,-565.48,0.00022465,6]
[346124344,1734723044325,-1055.54,0.00022465,6]
[346124345,1734723044335,-500.0,0.00022465,6]
[346124346,1734723044345,-500.0,0.00022465,6]
[346124347,1734723044355,-2469.02,0.00022465,6]
[346124348,1734723044365,-500.0,0.00022465,6]
[346124349,1734723044374,-500.0,0.00022465,6]
[346124350,1734723044383,-500.0,0.00022465,6]
[346124351,1734723044393,-1823.83,0.00022465,6]
[346124352,1734723044402,-500.0,0.00022465,6]
[346124353,1734723044412,-664.74,0.00022465,6]
[346124354,1734723044422,-2005.09,0.00022465,6]
[346124355,1734723044432,-500.0,0.00022465,6]
[346124356,1734723044442,-1748.33,0.00022465,6]
[346124357,1734723044451,-500.0,0.00022465,6]
[346124358,1734723044460,-4360.56026479,0.00022465,3]
[346124359,1734723044476,-804.19729776,0.00022465,3]
[346124360,1734723044485,-375.96655049,0.00022473,2]
[346124361,1734723044495,-500.0,0.00022473,2]
[346124362,1734723044504,-178.676,0.00022513,2]
[346124363,1734723044514,-151.157,0.00022513,2]
[346124364,1734723044523,-434.3521719,0.00022516,2]
[346124365,1734723044533,-1000.0,0.00022521,2]
[346124366,1734723044542,-500.0,0.00022548,2]
[346124367,1734723044555,-150.11,0.00022548,2]
[346124368,1734723044564,-172.644765,0.00022606,2]
[346124369,1734723044573,-2080.32408561,0.00022639,2]
[346124370,1734723044584,-541.47830712,0.00022639,2]
[346124371,1734723044593,-219.0,0.0002272,8]
[346124372,1734723044603,-1000.0,0.00022721,2]
[346124373,1734723044612,-1000.0,0.00022721,2]
[346124374,1734723044621,-420.0,0.00022735,2]
[346124375,1734723044631,-500.0,0.00022739,6]
[346124376,1734723044640,-500.0,0.00022739,6]
[346124377,1734723044649,-500.0,0.00022739,6]
[346124378,1734723044659,-637.88,0.00022739,6]
[346124379,1734723044668,-500.0,0.00022739,6]
[346124380,1734723044677,-500.0,0.00022739,6]
[346124381,1734723044687,-204.43481183,0.00022739,6]
[346124382,1734723044696,-500.0,0.00022739,6]
[346124383,1734723044705,-560.58,0.00022739,6]
[346124384,1734723044715,-500.0,0.00022739,6]
[346124385,1734723044730,-417.58761788,0.00022739,6]
[346124386,1734723044739,-500.0,0.00022739,6]
[346124387,1734723044749,-500.0,0.00022739,6]
[346124388,1734723044758,-578.44,0.00022739,6]
[346124389,1734723044770,-746.47,0.00022739,6]
[346124390,1734723044779,-500.0,0.00022739,6]
[346124391,1734723044789,-603.34,0.00022739,6]
[346124392,1734723044803,-500.0,0.00022739,6]
[346124393,1734723044813,-500.0,0.00022739,6]
[346124394,1734723044822,-500.0,0.00022739,6]
[346124395,1734723044831,-247.20364121,0.00022739,6]
[346124396,1734723045093,-252.79635879,0.00022739,6]
[346124397,1734723045103,-500.0,0.00022739,6]
[346124398,1734723045112,-475.36457546,0.00022739,6]
[346124399,1734723045559,-366.45182833,0.00021917,6]
[346124433,1734723630826,162.440865,0.00013973,2]
[346124436,1734723932285,-1760.13478766,0.00021058,2]
[346124437,1734723936108,-1153.50071511,0.00021058,2]
[346124438,1734723936135,-344.2073731,0.00021271,2]
[346124439,1734723936159,-160.312,0.0002144,2]
[346124440,1734723936182,-300.0,0.0002144,2]
[346124441,1734723936206,-51.72888114,0.0002144,2]
[346124442,1734724037137,-2156.02511346,0.00021226,2]
[346124443,1734724037159,-300.0,0.0002144,2]
[346124444,1734724037182,-300.0,0.0002144,2]
[346124445,1734724037203,-16127.98538143,0.00021441,2]
[346124527,1734724243765,-1148.4465268,0.00020734,2]
[346124528,1734724243947,-525.30544104,0.00020734,2]
[346124596,1734724247008,-4529.77033346,0.00020734,2]
[346124598,1734724247018,-188.00382605,0.00020962,2]
[346124600,1734724247028,-757.3977734,0.00021062,2]
[346124602,1734724247037,-440.569,0.000216,2]
[346124604,1734724247046,-162.440865,0.00021661,2]
[346124606,1734724247055,-666.0,0.000219,2]
[346124608,1734724247064,-468.0,0.000219,9]
[346124610,1734724247078,-300.0,0.00021915,2]
[346124612,1734724247088,-300.0,0.00021915,2]
[346124614,1734724247097,-237.25542462,0.00021916,2]
[346124616,1734724247107,-500.5673588,0.00021917,6]
[346124618,1734724247116,-500.0,0.00021917,6]
[346124620,1734724247125,-500.0,0.00021917,6]
[346124622,1734724247135,-500.0,0.00021917,6]
[346124624,1734724247144,-500.0,0.00021917,6]
[346124626,1734724247155,-500.0,0.00021917,6]
[346124628,1734724247164,-500.0,0.00021917,6]
[346124630,1734724247173,-500.0,0.00021917,6]
[346124632,1734724247182,-500.0,0.00021917,6]
[346124634,1734724247191,-500.0,0.00021917,6]
[346124636,1734724247200,-500.0,0.00021917,6]
[346124638,1734724247209,-500.0,0.00021917,6]
[346124640,1734724247218,-500.0,0.00021917,6]
[346124642,1734724247227,-500.0,0.00021917,6]
[346124644,1734724247237,-500.0,0.00021917,6]
[346124646,1734724247246,-500.0,0.00021917,6]
[346124648,1734724247255,-500.0,0.00021917,6]
[346124650,1734724247267,-500.0,0.00021917,6]
[346124652,1734724247276,-500.0,0.00021917,6]
[346124654,1734724247285,-500.0,0.00021917,6]
[346124656,1734724247294,-500.0,0.00021917,6]
[346124658,1734724247304,-500.0,0.00021917,6]
[346124660,1734724247312,-500.0,0.00021917,6]
[346124662,1734724247322,-500.0,0.00021917,6]
[346124664,1734724247333,-545.69,0.00021917,6]
[346124681,1734724247476,-500.0,0.00021917,6]
[346124683,1734724247486,-500.0,0.00021917,6]
[346124685,1734724247495,-500.0,0.00021917,6]
[346124687,1734724247505,-500.0,0.00021917,6]
[346124689,1734724247516,-500.0,0.00021917,6]
[346124691,1734724247525,-500.0,0.00021917,6]
[346124693,1734724247534,-500.0,0.00021917,6]
[346124695,1734724247544,-500.0,0.00021917,6]
[346124697,1734724247553,-500.0,0.00021917,6]
[346124699,1734724247562,-506.83758705,0.00021917,6]
[346124700,1734724247571,-500.0,0.00021917,6]
[346124701,1734724247580,-500.0,0.00021917,6]
[346124703,1734724247589,-500.0,0.00021917,6]
[346124705,1734724247598,-500.0,0.00021917,6]
[346124707,1734724247607,-500.0,0.00021917,6]
[346124709,1734724247616,-500.0,0.00021917,6]
[346124711,1734724247625,-500.0,0.00021917,6]
[346124713,1734724247634,-500.0,0.00021917,6]
[346124715,1734724247643,-500.0,0.00021917,6]
[346124717,1734724247652,-500.0,0.00021917,6]
[346124719,1734724247661,-225.74653219,0.00021917,6]
[346124721,1734724247670,-500.0,0.00021917,6]
[346124723,1734724247679,-500.0,0.00021917,6]
[346124725,1734724247687,-500.0,0.00021917,6]
[346124727,1734724247700,-500.0,0.00021917,6]
[346124729,1734724247709,-500.0,0.00021917,6]
[346124731,1734724247717,-500.0,0.00021917,6]
[346124733,1734724247727,-500.0,0.00021917,6]
[346124735,1734724247736,-500.0,0.00021917,6]
[346124737,1734724247746,-500.0,0.00021917,6]
[346124739,1734724247755,-500.0,0.00021917,6]
[346124741,1734724247765,-500.0,0.00021917,6]
[346124742,1734724247774,-500.0,0.00021917,6]
[346124744,1734724247783,-500.0,0.00021917,6]
[346124746,1734724247792,-500.0,0.00021917,6]
[346124748,1734724247801,-500.0,0.00021917,6]
[346124751,1734724247811,-760.9,0.00021917,6]
[346124753,1734724247820,-151.0,0.00021917,2]
[346124754,1734724247829,-1046.27,0.00021917,7]
[346124757,1734724247839,-500.0,0.00021917,6]
[346124759,1734724247848,-500.0,0.00021917,6]
[346124761,1734724247857,-500.0,0.00021917,6]
[346124763,1734724247867,-500.0,0.00021917,6]
[346124764,1734724247876,-500.0,0.00021917,6]
[346124766,1734724247885,-500.0,0.00021917,6]
[346124768,1734724247894,-500.0,0.00021917,6]
[346124770,1734724247903,-666.85,0.00021917,6]
[346124772,1734724247912,-500.0,0.00021917,6]
[346124774,1734724247921,-500.0,0.00021917,6]
[346124776,1734724247930,-500.0,0.00021917,6]
[346124778,1734724247941,-500.0,0.00021917,6]
[346124780,1734724247950,-517.06,0.00021917,6]
[346124783,1734724247959,-500.0,0.00021917,6]
[346124784,1734724247969,-500.0,0.00021917,6]
[346124786,1734724247978,-500.0,0.00021917,6]
[346124788,1734724247988,-505.28700191,0.00021917,6]
[346124790,1734724247997,-500.0,0.00021917,6]
[346124792,1734724248006,-500.0,0.00021917,6]
[346124794,1734724248019,-500.0,0.00021917,6]
[346124796,1734724248028,-500.0,0.00021917,6]
[346124798,1734724248037,-151.0,0.00021917,2]
[346124800,1734724248046,-500.0,0.00021917,6]
[346124802,1734724248056,-500.0,0.00021917,6]
[346124804,1734724248065,-500.0,0.00021917,6]
[346124807,1734724248079,-500.0,0.00021917,6]
[346124808,1734724248088,-500.0,0.00021917,6]
[346124810,1734724248098,-541.73,0.00021917,6]
[346124813,1734724248107,-500.0,0.00021917,6]
[346124815,1734724248118,-500.0,0.00021917,6]
[346124816,1734724248127,-500.0,0.00021917,6]
[346124818,1734724248137,-500.0,0.00021917,6]
[346124820,1734724248148,-430.03621424,0.00021917,6]
[346124822,1734724248158,-500.0,0.00021917,6]
[346124825,1734724248167,-500.0,0.00021917,6]
[346124827,1734724248176,-500.0,0.00021917,6]
[346124829,1734724248186,-168.83013866,0.00021917,6]
[346124831,1734724248195,-676.56,0.00021917,6]
[346124833,1734724248205,-500.0,0.00021917,6]
[346124835,1734724248218,-500.0,0.00021917,6]
[346124837,1734724248227,-500.0,0.00021917,6]
[346124839,1734724248237,-500.0,0.00021917,6]
[346124840,1734724248247,-1182.25,0.00021917,6]
[346124843,1734724248257,-298.91607345,0.00021917,6]
[346124845,1734724248268,-355.47254111,0.00021917,6]
[346124847,1734724248278,-500.0,0.00021917,6]
[346124849,1734724248287,-500.0,0.00021917,6]
[346124851,1734724248297,-1406.59,0.00021917,6]
[346124853,1734724248306,-500.0,0.00021917,6]
[346124855,1734724248314,-168.0,0.00021917,6]
[346124857,1734724248324,-500.0,0.00021917,6]
[346124859,1734724248333,-500.0,0.00021917,6]
[346124861,1734724248342,-1317.77,0.00021917,6]
[346124863,1734724248352,-500.0,0.00021917,6]
[346124865,1734724248361,-500.0,0.00021917,6]
[346124867,1734724248370,-500.0,0.00021917,6]
[346124868,1734724248380,-500.0,0.00021917,6]
[346124870,1734724248390,-500.0,0.00021917,6]
[346124873,1734724248400,-500.0,0.00021917,6]
[346124875,1734724248410,-923.87,0.00021917,6]
[346124876,1734724248419,-500.0,0.00021917,6]
[346124879,1734724248429,-500.0,0.00021917,6]
[346124881,1734724248439,-1384.19,0.00021917,6]
[346124883,1734724248449,-500.0,0.00021917,6]
[346124884,1734724248458,-500.0,0.00021917,6]
[346124886,1734724248468,-500.0,0.00021917,6]
[346124888,1734724248477,-500.0,0.00021917,6]
[346124891,1734724248486,-500.0,0.00021917,6]
[346124893,1734724248496,-500.0,0.00021917,6]
[346124895,1734724248505,-500.0,0.00021917,6]
[346124897,1734724248516,-500.0,0.00021917,6]
[346124899,1734724248526,-506.27792582,0.00021917,6]
[346124901,1734724248535,-151.0,0.00021917,2]
[346124903,1734724248545,-500.0,0.00021917,6]
[346124905,1734724248554,-500.0,0.00021917,6]
[346124907,1734724248563,-151.0,0.00021917,2]
[346124909,1734724248573,-392.268197,0.00021917,2]
[346124910,1734724248582,-500.0,0.00021917,6]
[346124912,1734724248592,-500.0,0.00021917,6]
[346124914,1734724248601,-500.0,0.00021917,6]
[346124916,1734724248611,-151.0,0.00021917,2]
[346124918,1734724248620,-500.0,0.00021917,6]
[346124920,1734724248630,-500.0,0.00021917,6]
[346124922,1734724248639,-1094.37,0.00021917,6]
[346124924,1734724248649,-500.0,0.00021917,6]
[346124926,1734724248658,-500.0,0.00021917,6]
[346124928,1734724248668,-671.72,0.00021917,6]
[346124930,1734724248677,-500.0,0.00021917,6]
[346124932,1734724248686,-500.0,0.00021917,6]
[346124934,1734724248696,-500.0,0.00021917,6]
[346124936,1734724248704,-500.0,0.00021917,6]
[346124938,1734724248714,-741.09,0.00021917,6]
[346124940,1734724248724,-500.0,0.00021917,6]
[346124942,1734724248733,-500.0,0.00021917,6]
[346124944,1734724248743,-500.0,0.00021917,6]
[346124946,1734724248752,-1456.0,0.00021917,6]
[346124948,1734724248766,-500.0,0.00021917,6]
[346124951,1734724248776,-500.0,0.00021917,6]
[346124953,1734724248785,-500.0,0.00021917,6]
[346124955,1734724248795,-1202.71,0.00021917,6]
[346124956,1734724248805,-500.0,0.00021917,6]
[346124958,1734724248814,-500.0,0.00021917,6]
[346124961,1734724248824,-349.60246664,0.00021917,6]
[346124962,1734724248834,-1281.69,0.00021917,6]
[346124965,1734724248844,-500.0,0.00021917,6]
[346124967,1734724248855,-151.0,0.00021917,2]
[346124969,1734724248865,-500.0,0.00021917,6]
[346124971,1734724248874,-151.0,0.00021917,2]
[346124973,1734724248884,-500.0,0.00021917,6]
[346124975,1734724248894,-500.0,0.00021917,6]
[346124977,1734724248904,-500.0,0.00021917,6]
[346124979,1734724248913,-500.0,0.00021917,6]
[346124981,1734724248922,-500.0,0.00021917,6]
[346124983,1734724248932,-821.47,0.00021917,6]
[346124985,1734724248941,-500.0,0.00021917,6]
[346124987,1734724248950,-500.0,0.00021917,6]
[346124989,1734724248960,-500.0,0.00021917,6]
[346124991,1734724248969,-567.51,0.00021917,6]
[346124993,1734724248979,-500.0,0.00021917,6]
[346124995,1734724248988,-500.0,0.00021917,6]
[346124997,1734724248997,-500.0,0.00021917,6]
[346124999,1734724249006,-500.0,0.00021917,6]
[346125001,1734724249017,-500.0,0.00021917,6]
[346125003,1734724249026,-500.0,0.00021917,6]
[346125005,1734724249036,-500.0,0.00021917,6]
[346125007,1734724249045,-1259.52,0.00021917,6]
[346125009,1734724249054,-500.0,0.00021917,6]
[346125011,1734724249062,-151.0,0.00021917,2]
[346125013,1734724249075,-500.0,0.00021917,6]
[346125015,1734724249084,-500.0,0.00021917,6]
[346125017,1734724249093,-500.0,0.00021917,6]
[346125019,1734724249103,-1917.23,0.00021917,6]
[346125021,1734724249112,-500.0,0.00021917,6]
[346125023,1734724249122,-500.0,0.00021917,6]
[346125025,1734724249131,-500.0,0.00021917,6]
[346125027,1734724249140,-888.19,0.00021917,6]
[346125029,1734724249150,-500.0,0.00021917,6]
[346125031,1734724249160,-500.0,0.00021917,6]
[346125033,1734724249169,-500.0,0.00021917,6]
[346125035,1734724249178,-229.608618,0.00021917,2]
[346125037,1734724249187,-500.0,0.00021917,6]
[346125039,1734724249196,-500.0,0.00021917,6]
[346125041,1734724249205,-513.97035956,0.00021917,6]
[346125043,1734724249214,-623.68,0.00021917,6]
[346125045,1734724249223,-226.629717,0.00021917,2]
[346125047,1734724249232,-500.0,0.00021917,6]
[346125049,1734724249241,-500.0,0.00021917,6]
[346125051,1734724249250,-226.629717,0.00021917,2]
[346125053,1734724249262,-151.0,0.00021917,2]
[346125055,1734724249270,-500.0,0.00021917,6]
[346125057,1734724249279,-500.0,0.00021917,6]
[346125059,1734724249289,-500.0,0.00021917,6]
[346125061,1734724249299,-500.0,0.00021917,6]
[346125062,1734724249308,-151.0,0.00021917,2]
[346125064,1734724249318,-500.0,0.00021917,6]
[346125066,1734724249327,-2455.7,0.00021917,6]
[346125068,1734724249337,-500.0,0.00021917,6]
[346125071,1734724249347,-1264.06,0.00021917,6]
[346125073,1734724249357,-500.0,0.00021917,6]
[346125075,1734724249366,-500.0,0.00021917,6]
[346125076,1734724249376,-500.0,0.00021917,6]
[346125078,1734724249385,-932.52,0.00021917,6]
[346125080,1734724249395,-500.0,0.00021917,6]
[346125082,1734724249404,-1091.54,0.00021917,6]
[346125085,1734724249414,-500.0,0.00021917,6]
[346125087,1734724249425,-500.0,0.00021917,6]
[346125089,1734724249435,-384.00866294,0.00021917,6]
[346125091,1734724249444,-500.0,0.00021917,6]
[346125092,1734724249453,-500.0,0.00021917,6]
[346125094,1734724249462,-1411.04,0.00021917,6]
[346125096,1734724249472,-500.0,0.00021917,6]
[346125098,1734724249481,-1030.37,0.00021917,6]
[346125100,1734724249490,-500.0,0.00021917,6]
[346125102,1734724249500,-500.0,0.00021917,6]
[346125104,1734724249510,-500.0,0.00021917,6]
[346125106,1734724249520,-455.69889578,0.00021917,6]
[346125108,1734724249529,-500.0,0.00021917,6]
[346125110,1734724249538,-500.0,0.00021917,6]
[346125112,1734724249548,-500.0,0.00021917,6]
[346125114,1734724249557,-269.716418,0.00021917,2]
[346125116,1734724249567,-500.0,0.00021917,6]
[346125118,1734724249577,-500.0,0.00021917,6]
[346125121,1734724249586,-500.0,0.00021917,6]
[346125123,1734724249595,-500.0,0.00021917,6]
[346125125,1734724249604,-269.716418,0.00021917,2]
[346125127,1734724249613,-472.24060304,0.00021917,6]
[346125129,1734724249622,-340.27349244,0.00021917,6]
[346125130,1734724249631,-500.0,0.00021917,6]
[346125133,1734724249641,-500.0,0.00021917,6]
[346125135,1734724249652,-535.40677269,0.00021917,6]
[346125137,1734724249661,-1000.0,0.00021917,6]
[346125139,1734724249670,-500.0,0.00021917,6]
[346125141,1734724249679,-500.0,0.00021917,6]
[346125143,1734724249688,-1121.28,0.00021917,6]
[346125145,1734724249697,-500.0,0.00021917,6]
[346125147,1734724249706,-500.0,0.00021917,6]
[346125149,1734724249715,-500.0,0.00021917,6]
[346125151,1734724249724,-500.26325349,0.00021917,6]
[346125153,1734724249733,-500.0,0.00021917,6]
[346125155,1734724249743,-500.0,0.00021917,6]
[346125157,1734724249752,-500.0,0.00021917,6]
[346125158,1734724249761,-4762.81,0.00021917,6]
[346125161,1734724249771,-500.0,0.00021917,6]
[346125162,1734724249780,-500.0,0.00021917,6]
[346125165,1734724249789,-500.0,0.00021917,6]
[346125166,1734724249799,-500.0,0.00021917,6]
[346125169,1734724249808,-500.0,0.00021917,6]
[346125171,1734724249817,-789.76,0.00021917,6]
[346125172,1734724249826,-500.0,0.00021917,6]
[346125175,1734724249836,-500.0,0.00021917,6]
[346125177,1734724249845,-500.0,0.00021917,6]
[346125179,1734724249855,-500.0,0.00021917,6]
[346125181,1734724249864,-500.0,0.00021917,6]
[346125183,1734724249873,-6346.17,0.00021917,6]
[346125185,1734724249882,-500.0,0.00021917,6]
[346125187,1734724249891,-500.0,0.00021917,6]
[346125189,1734724249900,-14567.23,0.00021917,6]
[346125191,1734724249910,-500.0,0.00021917,6]
[346125193,1734724249918,-151.0,0.00021917,2]
[346125195,1734724249927,-500.0,0.00021917,6]
[346125214,1734724250096,-500.0,0.00021917,6]
[346125216,1734724250106,-500.0,0.00021917,6]
[346125218,1734724250117,-500.0,0.00021917,6]
[346125220,1734724250127,-500.0,0.00021917,6]
[346125222,1734724250136,-500.0,0.00021917,6]
[346125224,1734724250147,-500.0,0.00021917,6]
[346125226,1734724250156,-500.0,0.00021917,6]
[346125228,1734724250166,-500.0,0.00021917,6]
[346125230,1734724250175,-268.24254296,0.00021917,6]
[346125232,1734724250184,-500.0,0.00021917,6]
[346125234,1734724250193,-151.0,0.00021917,2]
[346125236,1734724250202,-500.0,0.00021917,6]
[346125238,1734724250211,-500.0,0.00021917,6]
[346125240,1734724250221,-200.0,0.00021917,6]
[346125242,1734724250230,-7613.21,0.00021917,6]
[346125244,1734724250240,-500.0,0.00021917,6]
[346125246,1734724250250,-500.0,0.00021917,6]
[346125248,1734724250259,-151.0,0.00021917,2]
[346125250,1734724250271,-500.0,0.00021917,6]
[346125252,1734724250280,-500.0,0.00021917,6]
[346125253,1734724250289,-651.1,0.00021917,6]
[346125254,1734724250299,-151.0,0.00021917,2]
[346125255,1734724250308,-500.0,0.00021917,6]
[346125256,1734724250317,-314.09866231,0.00021917,6]
[346125257,1734724250326,-656.7,0.00021917,6]
[346125258,1734724250335,-500.0,0.00021917,6]
[346125259,1734724250345,-4738.01,0.00021917,6]
[346125260,1734724250354,-606.89,0.00021917,6]
[346125261,1734724250363,-2275.97,0.00021917,2]
[346125262,1734724250372,-500.0,0.00021917,6]
[346125263,1734724250382,-500.0,0.00021917,6]
[346125264,1734724250391,-500.0,0.00021917,6]
[346125265,1734724250400,-500.0,0.00021917,6]
[346125266,1734724250409,-500.0,0.00021917,6]
[346125267,1734724250419,-500.0,0.00021917,6]
[346125268,1734724250428,-500.0,0.00021917,6]
[346125269,1734724250438,-1268.27,0.00021917,6]
[346125271,1734724250448,-500.0,0.00021917,6]
[346125272,1734724250457,-340.557585,0.00021917,2]
[346125273,1734724250467,-500.0,0.00021917,6]
[346125274,1734724250476,-340.557585,0.00021917,2]
[346125275,1734724250488,-500.0,0.00021917,6]
[346125277,1734724250498,-500.0,0.00021917,6]
[346125278,1734724250508,-500.0,0.00021917,6]
[346125279,1734724250519,-1756.27,0.00021917,6]
[346125280,1734724250528,-773.78,0.00021917,6]
[346125281,1734724250537,-214.83013616,0.00021917,6]
[346125282,1734724250546,-1768.8,0.00021917,6]
[346125283,1734724250556,-500.0,0.00021917,6]
[346125284,1734724250565,-953.69,0.00021917,6]
[346125285,1734724250575,-500.0,0.00021917,6]
[346125286,1734724250584,-2706.0,0.00021917,6]
[346125287,1734724250593,-257.09456218,0.00021917,6]
[346125288,1734724250602,-889.09,0.00021917,6]
[346125289,1734724250612,-2586.26,0.00021917,2]
[346125290,1734724250621,-500.0,0.00021917,6]
[346125291,1734724250631,-500.0,0.00021917,6]
[346125292,1734724250640,-500.0,0.00021917,6]
[346125293,1734724250649,-781.89,0.00021917,6]
[346125294,1734724250658,-500.0,0.00021917,6]
[346125295,1734724250667,-500.0,0.00021917,6]
[346125296,1734724250677,-151.0,0.00021917,2]
[346125297,1734724250686,-500.0,0.00021917,6]
[346125298,1734724250696,-500.0,0.00021917,6]
[346125299,1734724250705,-4353.49,0.00021917,6]
[346125300,1734724250714,-151.0,0.00021917,2]
[346125301,1734724250720,-708.46,0.00021917,6]
[346125302,1734724250726,-1335.62,0.00021917,6]
[346125303,1734724250733,-500.0,0.00021917,6]
[346125304,1734724250742,-151.0,0.00021917,2]
[346125305,1734724250751,-500.0,0.00021917,6]
[346125306,1734724250762,-500.0,0.00021917,6]
[346125307,1734724250771,-151.0,0.00021917,2]
[346125308,1734724250781,-1937.26,0.00021917,6]
[346125309,1734724250791,-920.07,0.00021917,6]
[346125310,1734724250800,-500.0,0.00021917,6]
[346125311,1734724250810,-500.0,0.00021917,6]
[346125312,1734724250819,-502.12,0.00021917,6]
[346125313,1734724250828,-500.0,0.00021917,6]
[346125314,1734724250837,-500.0,0.00021917,6]
[346125315,1734724250846,-1847.82,0.00021917,6]
[346125316,1734724250855,-500.0,0.00021917,6]
[346125317,1734724250864,-13831.76,0.00021917,6]
[346125318,1734724250873,-500.0,0.00021917,6]
[346125319,1734724250882,-500.0,0.00021917,6]
[346125320,1734724250891,-500.0,0.00021917,6]
[346125321,1734724250900,-828.19,0.00021917,6]
[346125322,1734724250910,-500.0,0.00021917,6]
[346125323,1734724250919,-500.0,0.00021917,6]
[346125324,1734724250928,-500.0,0.00021917,6]
[346125325,1734724250937,-500.0,0.00021917,6]
[346125326,1734724250945,-500.0,0.00021917,6]
[346125327,1734724250954,-500.0,0.00021917,6]
[346125328,1734724250963,-500.0,0.00021917,6]
[346125329,1734724250973,-626.25,0.00021917,6]
[346125330,1734724250982,-500.0,0.00021917,6]